[Event "Live Chess"]
[Site "Chess.com"]
[Date "2024.06.02"]
[Round "-"]
[White "RamsayFlayer"]
[Black "Zhevzh1k7"]
[Result "1-0"]
[WhiteElo "1925"]
[BlackElo "1106"]
[TimeControl "300"]
[EndTime "4:33:38 PDT"]
[Termination "RamsayFlayer won by resignation"]

1. e4 {[%clk 0:04:58.7]} 1... c6 {[%clk 0:04:58.4]} 2. d4 {[%clk 0:04:56.8]}
2... d5 {[%clk 0:04:56.4]} 3. Nc3 {[%clk 0:04:56.1]} 3... dxe4 {[%clk
0:04:53.5]} 4. Nxe4 {[%clk 0:04:56]} 4... Bf5 {[%clk 0:04:51.9]} 5. Ng3 {[%clk
0:04:55]} 5... Bg6 {[%clk 0:04:51.2]} 6. Nf3 {[%clk 0:04:54.3]} 6... Nf6 {[%clk
0:04:48.8]} 7. Bd3 {[%clk 0:04:48.5]} 7... Bxd3 {[%clk 0:04:43.5]} 8. Qxd3
{[%clk 0:04:48.4]} 8... Nbd7 {[%clk 0:04:42.9]} 9. O-O {[%clk 0:04:43.9]} 9...
e6 {[%clk 0:04:41.3]} 10. Ne4 {[%clk 0:04:42.4]} 10... Nxe4 {[%clk 0:04:39.6]}
11. Qxe4 {[%clk 0:04:41.4]} 11... Be7 {[%clk 0:04:38.3]} 12. Bf4 {[%clk
0:04:38.3]} 12... Nf6 {[%clk 0:04:35.6]} 13. Qd3 {[%clk 0:04:35.5]} 13... O-O
{[%clk 0:04:32.3]} 14. Be5 {[%clk 0:04:30.2]} 14... Bd6 {[%clk 0:04:25.9]} 15.
Ng5 {[%clk 0:04:20.4]} 15... g6 {[%clk 0:04:08.6]} 16. Qh3 {[%clk 0:04:10.4]}
16... h5 {[%clk 0:03:46.9]} 17. Qf3 {[%clk 0:04:00.6]} 17... Bxe5 {[%clk
0:03:42.1]} 18. dxe5 {[%clk 0:03:58.7]} 18... Nd5 {[%clk 0:03:32.7]} 19. Ne4
{[%clk 0:03:52]} 19... Qb6 {[%clk 0:03:26.8]} 20. b3 {[%clk 0:03:44]} 20... Nb4
{[%clk 0:03:21.1]} 21. Qf4 {[%clk 0:03:24.2]} 21... Nxc2 {[%clk 0:03:10.3]} 22.
Qh6 {[%clk 0:03:19]} 22... f6 {[%clk 0:02:42.8]} 23. Qxg6+ {[%clk 0:03:14.8]}
23... Kh8 {[%clk 0:02:40.9]} 24. exf6 {[%clk 0:02:56]} 24... Qc7 {[%clk
0:02:33.6]} 25. Ng5 {[%clk 0:02:34.1]} 25... Nxa1 {[%clk 0:02:28.4]} 26. f7
{[%clk 0:02:32.8]} 26... Rxf7 {[%clk 0:02:21.1]} 27. Nxf7+ {[%clk 0:02:31.5]}
27... Qxf7 {[%clk 0:02:17.4]} 28. Qxf7 {[%clk 0:02:30.5]} 1-0

[Event "Live Chess"]
[Site "Chess.com"]
[Date "2024.06.02"]
[Round "-"]
[White "Kyrylo7770"]
[Black "BishopofWells"]
[Result "1-0"]
[WhiteElo "1655"]
[BlackElo "1536"]
[TimeControl "300"]
[EndTime "4:34:11 PDT"]
[Termination "Kyrylo7770 won by resignation"]

1. d4 {[%clk 0:04:57.9]} 1... d5 {[%clk 0:04:58.2]} 2. Nf3 {[%clk 0:04:57.3]}
2... h6 {[%clk 0:04:56.3]} 3. Bf4 {[%clk 0:04:56.4]} 3... Bg4 {[%clk 0:04:54]}
4. e3 {[%clk 0:04:55.4]} 4... e6 {[%clk 0:04:53.1]} 5. Be2 {[%clk 0:04:54.6]}
5... Bd6 {[%clk 0:04:51.9]} 6. Ne5 {[%clk 0:04:52.5]} 6... Bxe2 {[%clk
0:04:49.9]} 7. Qxe2 {[%clk 0:04:51.5]} 7... Nf6 {[%clk 0:04:45.1]} 8. Nc3 {[%clk
0:04:47.7]} 8... c6 {[%clk 0:04:43.9]} 9. O-O {[%clk 0:04:40]} 9... Qb6 {[%clk
0:04:41.6]} 10. Rab1 {[%clk 0:04:38.8]} 10... Bxe5 {[%clk 0:04:34.9]} 11. Bxe5
{[%clk 0:04:37.8]} 11... Qd8 {[%clk 0:04:31.8]} 12. Na4 {[%clk 0:04:36.4]} 12...
Nbd7 {[%clk 0:04:30.2]} 13. Bg3 {[%clk 0:04:31.8]} 13... b6 {[%clk 0:04:26.4]}
14. Qa6 {[%clk 0:04:29.1]} 14... O-O {[%clk 0:04:19.7]} 15. Nc3 {[%clk
0:04:26.6]} 15... c5 {[%clk 0:04:15.6]} 16. dxc5 {[%clk 0:04:23.5]} 16... bxc5
{[%clk 0:04:13.2]} 17. Qd6 {[%clk 0:04:21.9]} 17... Qb6 {[%clk 0:03:58]} 18. Qf4
{[%clk 0:04:17.9]} 18... Nh5 {[%clk 0:03:54.3]} 19. Qg4 {[%clk 0:04:16.2]} 19...
Nxg3 {[%clk 0:03:52.4]} 20. fxg3 {[%clk 0:04:16.1]} 20... c4 {[%clk 0:03:43.8]}
21. Rf3 {[%clk 0:04:13.1]} 21... Nf6 {[%clk 0:03:40]} 22. Qf4 {[%clk 0:04:09.4]}
22... Rad8 {[%clk 0:03:32.7]} 23. g4 {[%clk 0:04:08.6]} 23... d4 {[%clk
0:03:27.1]} 24. Ne4 {[%clk 0:04:06.3]} 24... Nxe4 {[%clk 0:03:22.4]} 25. Qxe4
{[%clk 0:04:02.8]} 25... dxe3 {[%clk 0:03:20.2]} 26. Rxe3 {[%clk 0:04:02.1]}
26... Rd2 {[%clk 0:03:16.7]} 27. Re1 {[%clk 0:03:59.6]} 27... Qxb2 {[%clk
0:03:08.1]} 28. Kh1 {[%clk 0:03:58.6]} 28... Rxc2 {[%clk 0:03:02.8]} 29. Rg3
{[%clk 0:03:46.2]} 29... Qxa2 {[%clk 0:02:54.1]} 30. g5 {[%clk 0:03:43.5]} 30...
Rf2 {[%clk 0:02:39.1]} 31. gxh6 {[%clk 0:03:41.2]} 31... f6 {[%clk 0:02:15.4]}
32. Rxg7+ {[%clk 0:03:37.8]} 1-0

[Event "Live Chess"]
[Site "Chess.com"]
[Date "2024.06.02"]
[Round "-"]
[White "elis06"]
[Black "Hoogleboogle"]
[Result "1-0"]
[WhiteElo "2339"]
[BlackElo "1309"]
[TimeControl "300"]
[EndTime "4:34:27 PDT"]
[Termination "elis06 won by checkmate"]

1. d4 {[%clk 0:04:57.2]} 1... Nf6 {[%clk 0:04:56.8]} 2. Nf3 {[%clk 0:04:56.3]}
2... e6 {[%clk 0:04:55]} 3. Bf4 {[%clk 0:04:55]} 3... d5 {[%clk 0:04:47.6]} 4.
e3 {[%clk 0:04:53.5]} 4... Bd6 {[%clk 0:04:46.7]} 5. Ne5 {[%clk 0:04:51.2]} 5...
Nc6 {[%clk 0:04:42.9]} 6. Nd2 {[%clk 0:04:48.8]} 6... O-O {[%clk 0:04:28.3]} 7.
Bd3 {[%clk 0:04:45.5]} 7... Ne7 {[%clk 0:04:13]} 8. c3 {[%clk 0:04:41.8]} 8...
Nf5 {[%clk 0:04:10.7]} 9. g4 {[%clk 0:04:37]} 9... Ne7 {[%clk 0:04:02.5]} 10. g5
{[%clk 0:04:32.7]} 10... Nd7 {[%clk 0:04:01.1]} 11. Qh5 {[%clk 0:04:26]} 11...
g6 {[%clk 0:03:56.9]} 12. Qg4 {[%clk 0:04:22.4]} 12... Nxe5 {[%clk 0:03:54.2]}
13. dxe5 {[%clk 0:04:21]} 13... Bc5 {[%clk 0:03:47.5]} 14. O-O-O {[%clk
0:04:16.5]} 14... Nf5 {[%clk 0:03:35.4]} 15. e4 {[%clk 0:04:13]} 15... dxe4
{[%clk 0:03:29.9]} 16. Nxe4 {[%clk 0:04:11.3]} 16... Bb6 {[%clk 0:03:19.3]} 17.
Nf6+ {[%clk 0:04:08.8]} 17... Kh8 {[%clk 0:03:01.6]} 18. Bxf5 {[%clk 0:04:06.8]}
18... Qe7 {[%clk 0:02:55.7]} 19. Qh4 {[%clk 0:04:03.3]} 19... Qxf6 {[%clk
0:02:42.9]} 20. exf6 {[%clk 0:04:01.1]} 20... exf5 {[%clk 0:02:28.8]} 21. Qh6
{[%clk 0:03:59.8]} 21... Rg8 {[%clk 0:02:26.2]} 22. Rd8 {[%clk 0:03:58.6]} 22...
Be3+ {[%clk 0:02:07]} 23. fxe3 {[%clk 0:03:56.8]} 23... Rxd8 {[%clk 0:02:01.5]}
24. Qg7# {[%clk 0:03:55.8]} 1-0

[Event "Live Chess"]
[Site "Chess.com"]
[Date "2024.06.02"]
[Round "-"]
[White "NeilDruggan73"]
[Black "JohanKjeldahl"]
[Result "1-0"]
[WhiteElo "1708"]
[BlackElo "1781"]
[TimeControl "300"]
[EndTime "4:34:34 PDT"]
[Termination "NeilDruggan73 won by resignation"]

1. d4 {[%clk 0:04:57.3]} 1... Nf6 {[%clk 0:04:58]} 2. Bg5 {[%clk 0:04:55]} 2...
e6 {[%clk 0:04:56.6]} 3. e4 {[%clk 0:04:52.6]} 3... Be7 {[%clk 0:04:50.6]} 4. e5
{[%clk 0:04:51.4]} 4... Nd5 {[%clk 0:04:49.2]} 5. Bxe7 {[%clk 0:04:50.8]} 5...
Qxe7 {[%clk 0:04:48.4]} 6. c4 {[%clk 0:04:48.9]} 6... Nb6 {[%clk 0:04:44.6]} 7.
Qd2 {[%clk 0:04:41.9]} 7... O-O {[%clk 0:04:40.4]} 8. Nf3 {[%clk 0:04:37.8]}
8... f5 {[%clk 0:04:37.7]} 9. Bd3 {[%clk 0:04:35.1]} 9... c5 {[%clk 0:04:28.8]}
10. O-O {[%clk 0:04:20.6]} 10... cxd4 {[%clk 0:04:27.1]} 11. Nxd4 {[%clk
0:04:19.3]} 11... Nc6 {[%clk 0:04:25.9]} 12. Nb5 {[%clk 0:04:15.8]} 12... Nxe5
{[%clk 0:04:20]} 13. b3 {[%clk 0:04:03.8]} 13... d5 {[%clk 0:04:04.3]} 14. f4
{[%clk 0:03:58.2]} 14... Qc5+ {[%clk 0:04:00.3]} 15. Kh1 {[%clk 0:03:55.4]}
15... Nxd3 {[%clk 0:03:54.3]} 16. Qxd3 {[%clk 0:03:53.1]} 16... dxc4 {[%clk
0:03:52.4]} 17. bxc4 {[%clk 0:03:45.6]} 17... a6 {[%clk 0:03:49.3]} 18. N5a3
{[%clk 0:03:33.6]} 18... Bd7 {[%clk 0:03:46.5]} 19. Re1 {[%clk 0:03:26.2]} 19...
Rad8 {[%clk 0:03:44.6]} 20. Qe3 {[%clk 0:03:24.8]} 20... Rfe8 {[%clk 0:03:41.4]}
21. Qxc5 {[%clk 0:03:22.5]} 1-0

[Event "Live Chess"]
[Site "Chess.com"]
[Date "2024.06.02"]
[Round "-"]
[White "KeithArkell"]
[Black "Isambard_Thomas"]
[Result "1-0"]
[WhiteElo "2422"]
[BlackElo "2197"]
[TimeControl "300"]
[EndTime "4:34:36 PDT"]
[Termination "KeithArkell won by resignation"]

1. d4 {[%clk 0:04:58.1]} 1... Nf6 {[%clk 0:04:55.8]} 2. Nf3 {[%clk 0:04:57.3]}
2... d5 {[%clk 0:04:53.5]} 3. c4 {[%clk 0:04:56.4]} 3... c6 {[%clk 0:04:52.6]}
4. Nc3 {[%clk 0:04:55.3]} 4... e6 {[%clk 0:04:51.9]} 5. cxd5 {[%clk 0:04:54.1]}
5... exd5 {[%clk 0:04:50.8]} 6. Qc2 {[%clk 0:04:53.4]} 6... Be7 {[%clk
0:04:49.8]} 7. Bg5 {[%clk 0:04:52.5]} 7... Nbd7 {[%clk 0:04:47.4]} 8. e3 {[%clk
0:04:51.9]} 8... h6 {[%clk 0:04:46.7]} 9. Bh4 {[%clk 0:04:50.8]} 9... Nb6 {[%clk
0:04:42.6]} 10. Bd3 {[%clk 0:04:48.9]} 10... Bg4 {[%clk 0:04:41.3]} 11. Ne5
{[%clk 0:04:47.5]} 11... Be6 {[%clk 0:04:37.6]} 12. O-O {[%clk 0:04:44.9]} 12...
Nbd7 {[%clk 0:04:35.5]} 13. Nxd7 {[%clk 0:04:41.9]} 13... Qxd7 {[%clk
0:04:34.5]} 14. Bxf6 {[%clk 0:04:40.6]} 14... gxf6 {[%clk 0:04:32.9]} 15. b4
{[%clk 0:04:39.7]} 15... Rg8 {[%clk 0:04:31.1]} 16. g3 {[%clk 0:04:38.8]} 16...
Bh3 {[%clk 0:04:29.6]} 17. Rfc1 {[%clk 0:04:37]} 17... Qg4 {[%clk 0:04:26.1]}
18. Bf1 {[%clk 0:04:31.5]} 18... h5 {[%clk 0:04:21.7]} 19. Bxh3 {[%clk
0:04:29.7]} 19... Qxh3 {[%clk 0:04:20.6]} 20. Ne2 {[%clk 0:04:23.6]} 20... Bd6
{[%clk 0:04:16.9]} 21. Nf4 {[%clk 0:04:21.5]} 21... Qg4 {[%clk 0:04:03]} 22. Qh7
{[%clk 0:04:06.9]} 22... h4 {[%clk 0:03:46.6]} 23. b5 {[%clk 0:03:59.7]} 23...
hxg3 {[%clk 0:03:35.4]} 24. hxg3 {[%clk 0:03:58.8]} 24... Ke7 {[%clk 0:02:40.3]}
25. Qh3 {[%clk 0:03:47.7]} 25... Bxf4 {[%clk 0:02:29.2]} 26. Qxg4 {[%clk
0:03:45.3]} 26... Rxg4 {[%clk 0:02:29.1]} 27. exf4 {[%clk 0:03:44.7]} 27... Kd6
{[%clk 0:02:26.3]} 28. bxc6 {[%clk 0:03:43.8]} 28... bxc6 {[%clk 0:02:25.5]} 29.
Rab1 {[%clk 0:03:40.2]} 29... Kc7 {[%clk 0:02:22.2]} 30. Rb5 {[%clk 0:03:36.8]}
30... Kd6 {[%clk 0:02:16.6]} 31. Rb7 {[%clk 0:03:35.7]} 31... Rg7 {[%clk
0:02:14.4]} 32. Kg2 {[%clk 0:03:34.1]} 32... f5 {[%clk 0:02:13.7]} 33. Kf3
{[%clk 0:03:33.3]} 33... a5 {[%clk 0:02:10.6]} 34. Re1 {[%clk 0:03:30.3]} 34...
c5 {[%clk 0:02:03.2]} 35. Rb6+ {[%clk 0:03:28.6]} 35... Kd7 {[%clk 0:01:57.6]}
36. dxc5 {[%clk 0:03:27.9]} 36... Rc8 {[%clk 0:01:55.6]} 37. Rd6+ {[%clk
0:03:26.9]} 37... Kc7 {[%clk 0:01:53.9]} 38. Rxd5 {[%clk 0:03:24.1]} 38... f6
{[%clk 0:01:50.4]} 39. Rxf5 {[%clk 0:03:22.7]} 39... Kc6 {[%clk 0:01:48.4]} 40.
Re6+ {[%clk 0:03:21.4]} 1-0

[Event "Live Chess"]
[Site "Chess.com"]
[Date "2024.06.02"]
[Round "-"]
[White "matt1979"]
[Black "Crowded_House"]
[Result "1/2-1/2"]
[WhiteElo "1413"]
[BlackElo "1657"]
[TimeControl "300"]
[EndTime "4:34:37 PDT"]
[Termination "Game drawn by repetition"]

1. f4 {[%clk 0:04:59.1]} 1... e6 {[%clk 0:04:57.8]} 2. Nf3 {[%clk 0:04:58]} 2...
d5 {[%clk 0:04:57.2]} 3. e3 {[%clk 0:04:57]} 3... c5 {[%clk 0:04:55.5]} 4. Bb5+
{[%clk 0:04:54.6]} 4... Bd7 {[%clk 0:04:52.9]} 5. Bxd7+ {[%clk 0:04:53.6]} 5...
Qxd7 {[%clk 0:04:52.4]} 6. O-O {[%clk 0:04:52.8]} 6... Nc6 {[%clk 0:04:51.4]} 7.
b3 {[%clk 0:04:52.1]} 7... Bd6 {[%clk 0:04:50.4]} 8. Bb2 {[%clk 0:04:51.3]} 8...
Bf8 {[%clk 0:04:41.6]} 9. Ne5 {[%clk 0:04:46.2]} 9... Nxe5 {[%clk 0:04:37.5]}
10. Bxe5 {[%clk 0:04:44.2]} 10... f6 {[%clk 0:04:32.7]} 11. Bb2 {[%clk
0:04:42.8]} 11... O-O-O {[%clk 0:04:21.6]} 12. d3 {[%clk 0:04:33.7]} 12... Ne7
{[%clk 0:04:17.3]} 13. Nd2 {[%clk 0:04:25.2]} 13... Nf5 {[%clk 0:04:10.8]} 14.
Qe1 {[%clk 0:04:22.8]} 14... Bd6 {[%clk 0:04:04.1]} 15. Nf3 {[%clk 0:04:14.4]}
15... Kb8 {[%clk 0:03:44.4]} 16. Nh4 {[%clk 0:04:12.7]} 16... Nxh4 {[%clk
0:03:41.3]} 17. Qxh4 {[%clk 0:04:11.6]} 17... Rdf8 {[%clk 0:03:33]} 18. c3
{[%clk 0:03:57.1]} 18... Qf7 {[%clk 0:03:31.5]} 19. a3 {[%clk 0:03:55.1]} 19...
Qg6 {[%clk 0:03:30]} 20. Rad1 {[%clk 0:03:47.4]} 20... e5 {[%clk 0:03:08]} 21.
fxe5 {[%clk 0:03:40.8]} 21... fxe5 {[%clk 0:03:03]} 22. e4 {[%clk 0:03:23]}
22... d4 {[%clk 0:02:54.9]} 23. cxd4 {[%clk 0:03:19.4]} 23... cxd4 {[%clk
0:02:54]} 24. Rc1 {[%clk 0:03:00.2]} 24... Rxf1+ {[%clk 0:02:41.8]} 25. Rxf1
{[%clk 0:02:56.3]} 25... Rc8 {[%clk 0:02:36.6]} 26. Rc1 {[%clk 0:02:53.6]} 26...
Rxc1+ {[%clk 0:02:31]} 27. Bxc1 {[%clk 0:02:52.8]} 27... Kc8 {[%clk 0:02:19.6]}
28. Qh3+ {[%clk 0:02:49.1]} 28... Kc7 {[%clk 0:02:14.6]} 29. Qf3 {[%clk
0:02:40.9]} 29... Qf6 {[%clk 0:02:11.6]} 30. Qe2 {[%clk 0:02:31.5]} 30... Qe7
{[%clk 0:02:07.8]} 31. Qc2+ {[%clk 0:02:29.3]} 31... Kb8 {[%clk 0:02:03.3]} 32.
Qc4 {[%clk 0:02:24]} 32... Bxa3 {[%clk 0:01:54.5]} 33. Qg8+ {[%clk 0:02:14.7]}
33... Kc7 {[%clk 0:01:52.5]} 34. Qc4+ {[%clk 0:02:13.1]} 34... Kb8 {[%clk
0:01:50.9]} 35. Qg8+ {[%clk 0:02:11.1]} 35... Kc7 {[%clk 0:01:50.5]} 36. Qc4+
{[%clk 0:02:10]} 36... Kb8 {[%clk 0:01:40.1]} 1/2-1/2

[Event "Live Chess"]
[Site "Chess.com"]
[Date "2024.06.02"]
[Round "-"]
[White "lateforthesky"]
[Black "r0ad_t0-gm"]
[Result "0-1"]
[WhiteElo "2057"]
[BlackElo "2284"]
[TimeControl "300"]
[EndTime "4:34:38 PDT"]
[Termination "r0ad_t0-gm won by resignation"]

1. e4 {[%clk 0:04:55.8]} 1... c5 {[%clk 0:04:55.5]} 2. Nf3 {[%clk 0:04:54.5]}
2... Nc6 {[%clk 0:04:54.8]} 3. Bb5 {[%clk 0:04:52]} 3... e5 {[%clk 0:04:53.6]}
4. O-O {[%clk 0:04:46.3]} 4... Bd6 {[%clk 0:04:52.2]} 5. Re1 {[%clk 0:04:44.6]}
5... Nf6 {[%clk 0:04:39.8]} 6. c3 {[%clk 0:04:43.1]} 6... O-O {[%clk 0:04:37.8]}
7. h3 {[%clk 0:04:36.1]} 7... a6 {[%clk 0:04:36.6]} 8. Bf1 {[%clk 0:04:33.9]}
8... Be7 {[%clk 0:04:33.3]} 9. d4 {[%clk 0:04:29.9]} 9... cxd4 {[%clk 0:04:19]}
10. cxd4 {[%clk 0:04:29.8]} 10... Nxd4 {[%clk 0:04:18.1]} 11. Nxd4 {[%clk
0:04:27.7]} 11... exd4 {[%clk 0:04:18]} 12. Qxd4 {[%clk 0:04:26.1]} 12... d5
{[%clk 0:04:15.9]} 13. e5 {[%clk 0:04:19.9]} 13... Ne4 {[%clk 0:04:01.5]} 14.
Nc3 {[%clk 0:04:18.9]} 14... Bc5 {[%clk 0:03:54.8]} 15. Qxd5 {[%clk 0:04:17.1]}
15... Bxf2+ {[%clk 0:03:53.7]} 16. Kh2 {[%clk 0:04:12.9]} 16... Qxd5 {[%clk
0:03:53.2]} 17. Nxd5 {[%clk 0:04:10.9]} 17... Bxe1 {[%clk 0:03:52.7]} 18. Nc7
{[%clk 0:04:06.8]} 18... Rb8 {[%clk 0:03:49.4]} 19. Be3 {[%clk 0:04:03]} 19...
Bg3+ {[%clk 0:03:47.6]} 20. Kg1 {[%clk 0:04:01.5]} 20... Bxe5 {[%clk 0:03:47.5]}
0-1

[Event "Live Chess"]
[Site "Chess.com"]
[Date "2024.06.02"]
[Round "-"]
[White "StoreySniper"]
[Black "vincents82"]
[Result "1-0"]
[WhiteElo "2501"]
[BlackElo "1997"]
[TimeControl "300"]
[EndTime "4:35:00 PDT"]
[Termination "StoreySniper won by resignation"]

1. e4 {[%clk 0:04:58]} 1... d5 {[%clk 0:04:58.4]} 2. exd5 {[%clk 0:04:56.6]}
2... Qxd5 {[%clk 0:04:56]} 3. Nc3 {[%clk 0:04:56.2]} 3... Qd8 {[%clk 0:04:52.7]}
4. Nf3 {[%clk 0:04:54.1]} 4... Bg4 {[%clk 0:04:51.2]} 5. Bc4 {[%clk 0:04:53]}
5... e6 {[%clk 0:04:50.2]} 6. d3 {[%clk 0:04:52.1]} 6... Nf6 {[%clk 0:04:49]} 7.
h3 {[%clk 0:04:47]} 7... Bxf3 {[%clk 0:04:47.7]} 8. Qxf3 {[%clk 0:04:45.7]} 8...
c6 {[%clk 0:04:47.5]} 9. Bg5 {[%clk 0:04:40.8]} 9... Nbd7 {[%clk 0:04:46.6]} 10.
O-O-O {[%clk 0:04:37.9]} 10... Be7 {[%clk 0:04:45.6]} 11. Rhe1 {[%clk
0:04:35.6]} 11... Qa5 {[%clk 0:04:44.1]} 12. Bd2 {[%clk 0:04:31.7]} 12... Qc7
{[%clk 0:04:41.4]} 13. g4 {[%clk 0:04:28.1]} 13... O-O {[%clk 0:04:34.4]} 14. g5
{[%clk 0:04:26.7]} 14... Nd5 {[%clk 0:04:29]} 15. Ne4 {[%clk 0:04:23.5]} 15...
b5 {[%clk 0:04:24.5]} 16. Bb3 {[%clk 0:04:08.4]} 16... a5 {[%clk 0:04:22.7]} 17.
c4 {[%clk 0:04:02.5]} 17... a4 {[%clk 0:04:16.5]} 18. Bc2 {[%clk 0:04:01.3]}
18... Nb4 {[%clk 0:04:05.3]} 19. Bb1 {[%clk 0:04:00.4]} 19... Ne5 {[%clk
0:03:51]} 20. Qg3 {[%clk 0:03:56.4]} 20... Nexd3+ {[%clk 0:03:43.9]} 21. Bxd3
{[%clk 0:03:54.3]} 21... Qxg3 {[%clk 0:03:42.6]} 22. Bxb4 {[%clk 0:03:44.7]}
22... Qc7 {[%clk 0:03:34.6]} 23. Bc3 {[%clk 0:03:24.6]} 23... b4 {[%clk
0:03:24.1]} 24. Bd4 {[%clk 0:03:23.4]} 24... c5 {[%clk 0:03:22.3]} 25. Be3
{[%clk 0:03:12.2]} 25... Rad8 {[%clk 0:02:59.7]} 26. f4 {[%clk 0:03:06.3]} 26...
Rd7 {[%clk 0:02:57.8]} 27. Bc2 {[%clk 0:02:59.3]} 27... b3 {[%clk 0:02:50.7]}
28. axb3 {[%clk 0:02:52.6]} 28... axb3 {[%clk 0:02:49.7]} 29. Bxb3 {[%clk
0:02:51.2]} 29... Rxd1+ {[%clk 0:02:48.1]} 30. Rxd1 {[%clk 0:02:44.1]} 30... Rb8
{[%clk 0:02:45.8]} 31. Bc2 {[%clk 0:02:42.9]} 31... Qb6 {[%clk 0:02:29.4]} 32.
b3 {[%clk 0:02:41.6]} 32... Ra8 {[%clk 0:02:22.5]} 33. Nc3 {[%clk 0:02:25.3]}
33... Qb4 {[%clk 0:02:13.6]} 34. Rd3 {[%clk 0:02:14.5]} 34... f6 {[%clk
0:02:02.9]} 35. h4 {[%clk 0:02:08]} 35... fxg5 {[%clk 0:01:59.7]} 36. hxg5
{[%clk 0:02:06.9]} 36... Rd8 {[%clk 0:01:41.3]} 37. Rxd8+ {[%clk 0:02:05.7]}
37... Bxd8 {[%clk 0:01:40.4]} 38. Bd2 {[%clk 0:01:59.3]} 38... Qa3+ {[%clk
0:01:38.1]} 39. Kb1 {[%clk 0:01:51.8]} 39... Ba5 {[%clk 0:01:34.6]} 40. Nb5
{[%clk 0:01:47.2]} 40... Bxd2 {[%clk 0:01:21.9]} 41. Nxa3 {[%clk 0:01:46.4]}
41... Bxf4 {[%clk 0:01:19.4]} 42. g6 {[%clk 0:01:44.6]} 42... h5 {[%clk
0:01:18.2]} 43. Bd1 {[%clk 0:01:30.8]} 43... h4 {[%clk 0:01:17]} 44. Bg4 {[%clk
0:01:30.2]} 44... Kf8 {[%clk 0:01:16.2]} 45. Bxe6 {[%clk 0:01:20.9]} 45... Ke7
{[%clk 0:01:15.1]} 46. Bh3 {[%clk 0:01:16.8]} 46... Kf6 {[%clk 0:01:13.9]} 47.
Nc2 {[%clk 0:01:09.8]} 47... Kxg6 {[%clk 0:01:11.1]} 48. b4 {[%clk 0:01:08.1]}
48... cxb4 {[%clk 0:01:09.3]} 49. Nxb4 {[%clk 0:01:08]} 49... Bd6 {[%clk
0:01:06.5]} 50. Nd3 {[%clk 0:01:04.9]} 50... Kh5 {[%clk 0:01:04.8]} 51. Kc2
{[%clk 0:01:00]} 51... g5 {[%clk 0:01:03.7]} 52. Nf2 {[%clk 0:00:59.2]} 52...
Bg3 {[%clk 0:01:01]} 53. Ng4 {[%clk 0:00:58.1]} 53... Bf4 {[%clk 0:00:54.1]} 54.
Kd3 {[%clk 0:00:57.2]} 54... Kg6 {[%clk 0:00:53.6]} 55. Ke4 {[%clk 0:00:56.5]}
55... Kf7 {[%clk 0:00:53.1]} 56. Kd5 {[%clk 0:00:50.5]} 56... Ke7 {[%clk
0:00:52.1]} 57. c5 {[%clk 0:00:49.4]} 57... Kd7 {[%clk 0:00:51.5]} 58. c6+
{[%clk 0:00:48.7]} 58... Kc7 {[%clk 0:00:50.8]} 59. Nf6 {[%clk 0:00:47.7]} 59...
Kb6 {[%clk 0:00:45.5]} 60. Ne4 {[%clk 0:00:42.3]} 60... Bb8 {[%clk 0:00:44.2]}
61. Nf6 {[%clk 0:00:35.9]} 61... Kc7 {[%clk 0:00:42.8]} 62. Bg4 {[%clk
0:00:33.9]} 62... Kb6 {[%clk 0:00:41.6]} 63. Nd7+ {[%clk 0:00:32.6]} 63... Kc7
{[%clk 0:00:41.2]} 64. Nxb8 {[%clk 0:00:31.8]} 64... Kxb8 {[%clk 0:00:40.8]} 65.
Kd6 {[%clk 0:00:30.9]} 65... Ka7 {[%clk 0:00:38.6]} 66. Kd7 {[%clk 0:00:28.7]}
66... Ka6 {[%clk 0:00:37.9]} 67. c7 {[%clk 0:00:28.1]} 67... Kb6 {[%clk
0:00:37.2]} 68. c8=Q {[%clk 0:00:27.5]} 1-0

[Event "Live Chess"]
[Site "Chess.com"]
[Date "2024.06.02"]
[Round "-"]
[White "NottheBishopSacrifice"]
[Black "kylet1990"]
[Result "1-0"]
[WhiteElo "2316"]
[BlackElo "751"]
[TimeControl "300"]
[EndTime "4:35:09 PDT"]
[Termination "NottheBishopSacrifice won by resignation"]

1. d4 {[%clk 0:04:58.2]} 1... c6 {[%clk 0:04:58.4]} 2. Nf3 {[%clk 0:04:54.7]}
2... d5 {[%clk 0:04:57.2]} 3. c4 {[%clk 0:04:54.3]} 3... Bf5 {[%clk 0:04:54.5]}
4. Nc3 {[%clk 0:04:53.4]} 4... e6 {[%clk 0:04:51.8]} 5. g3 {[%clk 0:04:51]} 5...
Bb4 {[%clk 0:04:49.9]} 6. Bg2 {[%clk 0:04:50.2]} 6... Bxc3+ {[%clk 0:04:48.1]}
7. bxc3 {[%clk 0:04:48.3]} 7... Nf6 {[%clk 0:04:45.3]} 8. O-O {[%clk 0:04:47.7]}
8... Nbd7 {[%clk 0:04:44.1]} 9. Qb3 {[%clk 0:04:46.8]} 9... O-O {[%clk
0:04:38.3]} 10. Qxb7 {[%clk 0:04:44.7]} 10... Nb6 {[%clk 0:04:33.3]} 11. cxd5
{[%clk 0:04:37.7]} 11... cxd5 {[%clk 0:04:23.9]} 12. Ba3 {[%clk 0:04:32.9]}
12... Re8 {[%clk 0:04:17]} 13. Bc5 {[%clk 0:04:31.5]} 13... Nc4 {[%clk
0:04:11.2]} 14. Qa6 {[%clk 0:04:28.1]} 14... Be4 {[%clk 0:04:01.6]} 15. Nh4
{[%clk 0:04:21.2]} 15... h6 {[%clk 0:03:46.8]} 16. f3 {[%clk 0:04:17.1]} 16...
Bg6 {[%clk 0:03:42]} 17. e4 {[%clk 0:04:16.2]} 17... Ne3 {[%clk 0:03:38.2]} 18.
Rf2 {[%clk 0:04:10.2]} 18... dxe4 {[%clk 0:03:33.6]} 19. Nxg6 {[%clk 0:04:08.9]}
19... fxg6 {[%clk 0:03:31.6]} 20. fxe4 {[%clk 0:04:08]} 20... Re7 {[%clk
0:03:16.3]} 21. e5 {[%clk 0:04:04.9]} 21... Nxg2 {[%clk 0:03:10.8]} 22. Kxg2
{[%clk 0:04:02.1]} 22... Ng4 {[%clk 0:02:57.7]} 23. Bxe7 {[%clk 0:03:57.5]}
23... Qxe7 {[%clk 0:02:56.3]} 24. Rf4 {[%clk 0:03:54.5]} 24... Ne3+ {[%clk
0:02:52.2]} 25. Kf2 {[%clk 0:03:53.1]} 25... Nf5 {[%clk 0:02:45]} 26. Qc6 {[%clk
0:03:50.1]} 26... Rf8 {[%clk 0:02:39.2]} 27. Kg1 {[%clk 0:03:47.6]} 27... Qg5
{[%clk 0:02:34.6]} 28. Raf1 {[%clk 0:03:43.9]} 28... Nxg3 {[%clk 0:01:59.3]} 29.
Rxf8+ {[%clk 0:03:41.1]} 29... Kh7 {[%clk 0:01:57.5]} 30. hxg3 {[%clk
0:03:40.7]} 30... Qxg3+ {[%clk 0:01:55.8]} 31. Qg2 {[%clk 0:03:40.3]} 1-0